fUST/lending_fUST_20250908
["ID","MTS","AMOUNT","RATE_DAILY","PERIOD"]
[384258204,1757310635645,-480.0,0.00013698,2]
[384258205,1757310635656,-480.0,0.00013698,2]
[384258206,1757310635667,-151.999513,0.00013698,2]
[384258207,1757310635677,-524.68776467,0.00013698,2]
[384258208,1757310635687,-486.63999124,0.00013698,2]
[384258209,1757310635696,-480.0,0.00013698,2]
[384258210,1757310635706,-480.0,0.00013698,2]
[384258211,1757310635801,-480.0,0.00013698,2]
[384258212,1757310635811,-480.0,0.00013698,2]
[384258213,1757310635821,-236.58210527,0.00013698,2]
[384258214,1757310635831,-483.55951404,0.00013698,2]
[384258215,1757310635841,-480.0,0.00013698,2]
[384258216,1757310635855,-480.0,0.00013698,2]
[384258217,1757310635866,-480.0,0.00013698,2]
[384258218,1757310635875,-481.66750669,0.00013698,2]
[384258219,1757310635885,-134.02161798,0.00013698,2]
[384258220,1757310635901,-345.97838202,0.00013698,2]
[384258221,1757310635912,-480.95198281,0.00013698,2]
[384258222,1757310635922,-480.0,0.00013698,2]
[384258223,1757310635932,-482.60079672,0.00013698,2]
[384258224,1757310635942,-238.28122632,0.00013698,2]
[384258225,1757310635952,-482.4685257,0.00013698,2]
[384258226,1757310635962,-480.0,0.00013698,2]
[384258227,1757310635972,-480.0,0.00013698,2]
[384258228,1757310635981,-480.0,0.00013698,2]
[384258229,1757310635991,-480.0,0.00013698,2]
[384258230,1757310636001,-151.0,0.00013698,2]
[384258231,1757310636010,-151.0,0.00013698,2]
[384258232,1757310636019,-151.0,0.00013698,2]
[384258233,1757310636029,-151.0,0.00013698,2]
[384258234,1757310636039,-151.0,0.00013698,2]
[384258235,1757310636048,-151.0,0.00013698,2]
[384258236,1757310636058,-603.13732937,0.00013698,2]
[384258237,1757310636068,-151.0,0.00013698,2]
[384258238,1757310636077,-480.0,0.00013698,2]
[384258239,1757310636087,-151.0,0.00013698,2]
[384258240,1757310636097,-151.0,0.00013698,2]
[384258241,1757310636106,-480.0,0.00013698,2]
[384258242,1757310636116,-151.0,0.00013698,2]
[384258243,1757310636125,-151.0,0.00013698,2]
[384258244,1757310636135,-151.0,0.00013698,2]
[384258245,1757310636144,-151.0,0.00013698,2]
[384258246,1757310636153,-151.0,0.00013698,2]
[384258247,1757310636163,-151.0,0.00013698,2]
[384258248,1757310636172,-202.247114,0.00013698,2]
[384258249,1757310636181,-485.24187668,0.00013698,2]
[384258250,1757310636191,-152.194827,0.00013698,2]
[384258251,1757310636201,-116.63243617,0.00013698,2]
[384258252,1757310636214,-363.36756383,0.00013698,2]
[384258253,1757310636223,-480.0,0.00013698,2]
[384258254,1757310636233,-317.5930523,0.00013698,2]
[384258258,1757310638001,-10000.01,0.00013561,2]
[384258283,1757310638441,-1342.47067578,0.00013561,2]
[384258772,1757310643414,-13754.47659743,0.00013561,2]
[384258774,1757310643424,-162.4069477,0.00013698,2]
[384258776,1757310643433,-151.0,0.00013698,2]
[384258778,1757310643443,-154.158476,0.00013698,2]
[384258780,1757310643452,-480.0,0.00013698,2]
[384258782,1757310643461,-484.59648074,0.00013698,2]
[384258785,1757310643471,-480.0,0.00013698,2]
[384258788,1757310643480,-482.20345293,0.00013698,2]
[384258790,1757310643489,-480.0,0.00013698,2]
[384258792,1757310643498,-151.0,0.00013698,2]
[384258794,1757310643507,-151.0,0.00013698,2]
[384258796,1757310643516,-151.0,0.00013698,2]
[384258798,1757310643526,-151.435723,0.00013698,2]
[384258801,1757310643535,-971.66,0.00013698,2]
[384258804,1757310643546,-151.0,0.00013698,2]
[384258806,1757310643557,-151.0,0.00013698,2]
[384258808,1757310643569,-480.0,0.00013698,2]
[384258810,1757310643579,-155.120015,0.00013698,2]
[384258812,1757310643588,-480.0,0.00013698,2]
[384258814,1757310643598,-491.12008122,0.00013698,2]
[384258816,1757310643608,-480.0,0.00013698,2]
[384258819,1757310643617,-480.0,0.00013698,2]
[384258822,1757310643626,-480.0,0.00013698,2]
[384258825,1757310643636,-442.68709172,0.00013698,2]
[384258827,1757310643646,-481.65123842,0.00013698,2]
[384258830,1757310643656,-480.0,0.00013698,2]
[384258833,1757310643666,-480.0,0.00013698,2]
[384258837,1757310643676,-480.0,0.00013698,2]
[384258838,1757310643686,-480.0,0.00013698,2]
[384258840,1757310643697,-480.0,0.00013698,2]
[384258842,1757310643707,-480.0,0.00013698,2]
[384258844,1757310643716,-481.95034887,0.00013698,2]
[384258846,1757310643726,-489.25119069,0.00013698,2]
[384258849,1757310643736,-480.0,0.00013698,2]
[384258851,1757310643747,-480.0,0.00013698,2]
[384258852,1757310643757,-480.0,0.00013698,2]
[384258855,1757310643766,-151.0,0.00013698,2]
[384258856,1757310643775,-152.700802,0.00013698,2]
[384258858,1757310643785,-480.53820235,0.00013698,2]
[384258860,1757310643798,-483.35416143,0.00013698,2]
[384258862,1757310643808,-480.0,0.00013698,2]
[384258864,1757310643817,-480.0,0.00013698,2]
[384258866,1757310643826,-151.0,0.00013698,2]
[384258868,1757310643835,-152.166818,0.00013698,2]
[384258870,1757310643845,-480.0,0.00013698,2]
[384258872,1757310643855,-480.0,0.00013698,2]
[384258874,1757310643864,-485.91422924,0.00013698,2]
[384258876,1757310643874,-481.37402746,0.00013698,2]
[384258878,1757310643883,-480.0,0.00013698,2]
[384258880,1757310643892,-488.43149618,0.00013698,2]
[384258882,1757310643902,-381.73484599,0.00013698,2]
[384258884,1757310643911,-485.57346109,0.00013698,2]
[384258886,1757310643921,-396.03781708,0.00013698,2]
[384258888,1757310643930,-485.83805782,0.00013698,2]
[384258890,1757310643939,-480.0,0.00013698,2]
[384258892,1757310643949,-480.0,0.00013698,2]
[384258894,1757310643958,-480.0,0.00013698,2]
[384258896,1757310643967,-151.0,0.00013698,2]
[384258898,1757310643977,-151.0,0.00013698,2]
[384258900,1757310643986,-157.474625,0.00013698,2]
[384258902,1757310643996,-480.0,0.00013698,2]
[384258904,1757310644007,-151.0,0.00013698,2]
[384258906,1757310644016,-480.0,0.00013698,2]
[384258908,1757310644026,-480.0,0.00013698,2]
[384258910,1757310644035,-151.0,0.00013698,2]
[384258912,1757310644044,-151.0,0.00013698,2]
[384258914,1757310644054,-480.0,0.00013698,2]
[384258916,1757310644063,-151.0,0.00013698,2]
[384258918,1757310644072,-151.0,0.00013698,2]
[384258920,1757310644082,-164.075677,0.00013698,2]
[384258922,1757310644091,-485.08192007,0.00013698,2]
[384258923,1757310644100,-594.2,0.00013698,2]
[384258925,1757310644110,-480.0,0.00013698,2]
[384258927,1757310644119,-480.0,0.00013698,2]
[384258929,1757310644129,-568.13,0.00013698,2]
[384258931,1757310644138,-480.0,0.00013698,2]
[384258933,1757310644147,-480.0,0.00013698,2]
[384258935,1757310644159,-480.0,0.00013698,2]
[384258937,1757310644169,-480.0,0.00013698,2]
[384258939,1757310644179,-480.0,0.00013698,2]
[384258941,1757310644188,-480.95407265,0.00013698,2]
[384258943,1757310644197,-480.0,0.00013698,2]
[384258945,1757310644207,-480.0,0.00013698,2]
[384258947,1757310644216,-329.04937656,0.00013698,2]
[384258949,1757310644226,-480.0,0.00013698,2]
[384258951,1757310644235,-481.1905132,0.00013698,2]
[384258953,1757310644244,-480.0,0.00013698,2]
[384258955,1757310644254,-484.61181855,0.00013698,2]
[384258958,1757310644265,-480.0,0.00013698,2]
[384258960,1757310644274,-480.0,0.00013698,2]
[384258961,1757310644283,-480.0,0.00013698,2]
[384258963,1757310644294,-482.05563117,0.00013698,2]
[384258965,1757310644305,-480.0,0.00013698,2]
[384258967,1757310644315,-487.15495781,0.00013698,2]
[384258969,1757310644324,-480.0,0.00013698,2]
[384258971,1757310644334,-4983.26,0.00013698,2]
[384258973,1757310644343,-1038.39,0.00013698,2]
[384258975,1757310644353,-480.0,0.00013698,2]
[384258977,1757310644363,-480.0,0.00013698,2]
[384258979,1757310644374,-2849.54,0.00013698,2]
[384258981,1757310644385,-480.0,0.00013698,2]
[384258983,1757310644394,-511.56,0.00013698,2]
[384258985,1757310644404,-485.01799621,0.00013698,2]
[384258987,1757310644414,-500.0,0.00013698,2]
[384258989,1757310644424,-157.0,0.00013698,2]
[384258991,1757310644434,-296.88981146,0.00013698,2]
[384258993,1757310644444,-500.0,0.00013698,2]
[384258995,1757310644454,-157.0,0.00013698,2]
[384258997,1757310644463,-500.0,0.00013698,2]
[384258999,1757310644472,-480.0,0.00013698,2]
[384259001,1757310644482,-481.70040229,0.00013698,2]
[384259003,1757310644492,-480.0,0.00013698,2]
[384259005,1757310644506,-157.0,0.00013698,2]
[384259007,1757310644515,-151.0,0.00013698,2]
[384259009,1757310644524,-151.0,0.00013698,2]
[384259011,1757310644534,-157.0,0.00013698,2]
[384259013,1757310644544,-151.0,0.00013698,2]
[384259014,1757310644557,-158.845699,0.00013698,2]
[384259016,1757310644569,-480.0,0.00013698,2]
[384259017,1757310644578,-157.0,0.00013698,2]
[384259018,1757310644588,-579.93395962,0.00013698,2]
[384259019,1757310644598,-480.0,0.00013698,2]
[384259020,1757310644608,-500.0,0.00013698,2]
[384259021,1757310644618,-296.71166127,0.00013698,2]
[384259022,1757310644628,-1374.54,0.00013698,2]
[384259024,1757310644639,-172.76631583,0.00013698,2]
[384259026,1757310644650,-500.0,0.00013698,2]
[384259028,1757310644659,-484.66389255,0.00013698,2]
[384259030,1757310644669,-151.0,0.00013698,2]
[384259032,1757310644679,-480.0,0.00013698,2]
[384259034,1757310644688,-151.0,0.00013698,2]
[384259036,1757310644698,-158.064524,0.00013698,2]
[384259038,1757310644708,-600.0,0.00013698,2]
[384259041,1757310644718,-489.86,0.00013698,2]
[384259043,1757310644729,-265.43772286,0.00013698,2]
[384259045,1757310644738,-480.0,0.00013698,2]
[384259046,1757310644748,-480.0,0.00013698,2]
[384259049,1757310644757,-1253.23,0.00013698,2]
[384259051,1757310644767,-480.68282042,0.00013698,2]
[384259052,1757310644778,-480.0,0.00013698,2]
[384259055,1757310644787,-483.04005385,0.00013698,2]
[384259057,1757310644797,-480.0,0.00013698,2]
[384259059,1757310644806,-151.0,0.00013698,2]
[384259061,1757310644816,-151.0,0.00013698,2]
[384259063,1757310644826,-151.0,0.00013698,2]
[384259064,1757310644836,-151.0,0.00013698,2]
[384259066,1757310644845,-151.0,0.00013698,2]
[384259069,1757310644856,-151.0,0.00013698,2]
[384259070,1757310644866,-151.0,0.00013698,2]
[384259073,1757310644875,-151.0,0.00013698,2]
[384259074,1757310644884,-151.0,0.00013698,2]
[384259076,1757310644895,-480.0,0.00013698,2]
[384259079,1757310644904,-164.978103,0.00013698,2]
[384259081,1757310644914,-151.0,0.00013698,2]
[384259083,1757310644924,-151.0,0.00013698,2]
[384259085,1757310644934,-151.0,0.00013698,2]
[384259087,1757310644943,-151.0,0.00013698,2]
[384259088,1757310644953,-151.0,0.00013698,2]
[384259090,1757310644962,-228.853298,0.00013698,2]
[384259092,1757310644973,-151.0,0.00013698,2]
[384259094,1757310644982,-168.212705,0.00013698,2]
[384259097,1757310644991,-480.0,0.00013698,2]
[384259099,1757310645001,-531.91,0.00013698,2]
[384259101,1757310645010,-482.18780992,0.00013698,2]
[384259102,1757310645020,-805.39,0.00013698,2]
[384259105,1757310645029,-480.0,0.00013698,2]
[384259107,1757310645039,-480.0,0.00013698,2]
[384259108,1757310645048,-480.0,0.00013698,2]
[384259110,1757310645058,-480.0,0.00013698,2]
[384259113,1757310645067,-484.68547271,0.00013698,2]
[384259115,1757310645076,-488.04220272,0.00013698,2]
[384259116,1757310645085,-491.09025727,0.00013698,2]
[384259118,1757310645095,-541.57,0.00013698,2]
[384259121,1757310645104,-480.0,0.00013698,2]
[384259123,1757310645114,-288.39596,0.00013698,2]
[384259125,1757310645123,-1803.99,0.00013698,2]
[384259126,1757310645133,-288.39596,0.00013698,2]
[384259129,1757310645143,-288.39596,0.00013698,2]
[384259131,1757310645153,-288.39596,0.00013698,2]
[384259133,1757310645163,-288.39596,0.00013698,2]
[384259135,1757310645172,-288.39596,0.00013698,2]
[384259137,1757310645183,-484.85144182,0.00013698,2]
[384259139,1757310645192,-288.39596,0.00013698,2]
[384259141,1757310645202,-288.39596,0.00013698,2]
[384259143,1757310645211,-480.0,0.00013698,2]
[384259145,1757310645220,-288.39596,0.00013698,2]
[384259147,1757310645231,-288.39596,0.00013698,2]
[384259149,1757310645241,-288.39596,0.00013698,2]
[384259151,1757310645250,-151.0,0.00013698,2]
[384259153,1757310645259,-288.39596,0.00013698,2]
[384259155,1757310645269,-492.19939604,0.00013698,2]
[384259157,1757310645278,-168.104384,0.00013698,2]
[384259159,1757310645288,-288.39596,0.00013698,2]
[384259161,1757310645298,-288.39596,0.00013698,2]
[384259163,1757310645307,-288.39596,0.00013698,2]
[384259165,1757310645316,-288.39596,0.00013698,2]
[384259167,1757310645326,-288.39596,0.00013698,2]
[384259169,1757310645335,-288.39596,0.00013698,2]
[384259171,1757310645344,-288.39596,0.00013698,2]
[384259173,1757310645354,-288.395964,0.00013698,2]
[384259175,1757310645363,-579.51,0.00013698,2]
[384259177,1757310645372,-480.0,0.00013698,2]
[384259179,1757310645382,-151.0,0.00013698,2]
[384259181,1757310645391,-151.0,0.00013698,2]
[384259183,1757310645401,-240.372511,0.00013698,2]
[384259185,1757310645410,-481.07049231,0.00013698,2]
[384259198,1757310645523,-482.05871783,0.00013698,2]
[384259200,1757310645532,-500.0,0.00013698,2]
[384259202,1757310645541,-500.0,0.00013698,2]
[384259204,1757310645550,-500.0,0.00013698,2]
[384259205,1757310645563,-500.0,0.00013698,2]
[384259207,1757310645574,-480.0,0.00013698,2]
[384259210,1757310645583,-500.0,0.00013698,2]
[384259212,1757310645593,-500.0,0.00013698,2]
[384259213,1757310645603,-500.0,0.00013698,2]
[384259215,1757310645613,-500.0,0.00013698,2]
[384259217,1757310645623,-500.0,0.00013698,2]
[384259219,1757310645632,-500.0,0.00013698,2]
[384259221,1757310645643,-500.0,0.00013698,2]
[384259224,1757310645653,-480.0,0.00013698,2]
[384259226,1757310645664,-500.0,0.00013698,2]
[384259227,1757310645674,-215.96938456,0.00013698,2]
[384259229,1757310645684,-480.0,0.00013698,2]
[384259232,1757310645693,-1268.63,0.00013698,2]
[384259234,1757310645704,-481.49364635,0.00013698,2]
[384259235,1757310645715,-283.394942,0.00013698,2]
[384259238,1757310645725,-283.394942,0.00013698,2]
[384259239,1757310645735,-283.394942,0.00013698,2]
[384259242,1757310645745,-480.0,0.00013698,2]
[384259243,1757310645754,-283.394942,0.00013698,2]
[384259246,1757310645763,-283.394942,0.00013698,2]
[384259249,1757310645775,-283.394942,0.00013698,2]
[384259251,1757310645784,-283.394942,0.00013698,2]
[384259253,1757310645794,-283.394942,0.00013698,2]
[384259255,1757310645803,-283.394942,0.00013698,2]
[384259257,1757310645812,-283.394942,0.00013698,2]
[384259259,1757310645821,-480.0,0.00013698,2]
[384259260,1757310645830,-283.394942,0.00013698,2]
[384259263,1757310645839,-283.394942,0.00013698,2]
[384259264,1757310645849,-283.394942,0.00013698,2]
[384259266,1757310645858,-283.394942,0.00013698,2]
[384259268,1757310645867,-283.394942,0.00013698,2]
[384259271,1757310645877,-283.394942,0.00013698,2]
[384259273,1757310645887,-283.394942,0.00013698,2]
[384259275,1757310645896,-283.394942,0.00013698,2]
[384259276,1757310645905,-283.394942,0.00013698,2]
[384259278,1757310645914,-480.0,0.00013698,2]
[384259280,1757310645924,-283.394942,0.00013698,2]
[384259282,1757310645934,-480.0,0.00013698,2]
[384259285,1757310645943,-480.0,0.00013698,2]
[384259286,1757310645952,-480.0,0.00013698,2]
[384259288,1757310645962,-168.14741134,0.00013698,2]
[384259290,1757310645971,-151.0,0.00013698,2]
[384259292,1757310645981,-158.635306,0.00013698,2]
[384259295,1757310645991,-480.0,0.00013698,2]
[384259299,1757310646000,-151.0,0.00013698,2]
[384259302,1757310646009,-606.30820584,0.00013698,2]
[384259304,1757310646018,-151.0,0.00013698,2]
[384259307,1757310646028,-151.0,0.00013698,2]
[384259310,1757310646038,-151.0,0.00013698,2]
[384259313,1757310646047,-480.0,0.00013698,2]
[384259316,1757310646056,-480.0,0.00013698,2]
[384259320,1757310646066,-151.0,0.00013698,2]
[384259323,1757310646075,-151.0,0.00013698,2]
[384259325,1757310646091,-151.0,0.00013698,2]
[384259327,1757310646100,-151.0,0.00013698,2]
[384259329,1757310646110,-151.0,0.00013698,2]
[384259331,1757310646119,-480.0,0.00013698,2]
[384259333,1757310646129,-151.0,0.00013698,2]
[384259335,1757310646139,-233.099947,0.00013698,2]
[384259337,1757310646148,-484.74544522,0.00013698,2]
[384259340,1757310646158,-480.0,0.00013698,2]
[384259342,1757310646167,-480.0,0.00013698,2]
[384259344,1757310646177,-190.915905,0.00013698,2]
[384259346,1757310646187,-480.0,0.00013698,2]
[384259348,1757310646197,-190.915905,0.00013698,2]
[384259350,1757310646206,-480.0,0.00013698,2]
[384259352,1757310646216,-190.915905,0.00013698,2]
[384259354,1757310646226,-480.0,0.00013698,2]
[384259356,1757310646235,-480.0,0.00013698,2]
[384259358,1757310646245,-190.915905,0.00013698,2]
[384259360,1757310646254,-190.915905,0.00013698,2]
[384259362,1757310646264,-190.915905,0.00013698,2]
[384259364,1757310646274,-190.915905,0.00013698,2]
[384259366,1757310646284,-480.0,0.00013698,2]
[384259368,1757310646295,-190.915905,0.00013698,2]
[384259370,1757310646304,-480.0,0.00013698,2]
[384259372,1757310646313,-190.915905,0.00013698,2]
[384259374,1757310646322,-190.915905,0.00013698,2]
[384259376,1757310646331,-392.49891738,0.00013698,2]
[384259378,1757310646341,-190.915905,0.00013698,2]
[384259380,1757310646350,-190.915905,0.00013698,2]
[384259382,1757310646359,-190.915905,0.00013698,2]
[384259384,1757310646368,-190.915905,0.00013698,2]
[384259386,1757310646378,-190.915905,0.00013698,2]
[384259388,1757310646387,-190.915905,0.00013698,2]
[384259390,1757310646396,-480.0,0.00013698,2]
[384259392,1757310646406,-190.915905,0.00013698,2]
[384259394,1757310646416,-190.915905,0.00013698,2]
[384259396,1757310646425,-190.915905,0.00013698,2]
[384259398,1757310646435,-190.915904,0.00013698,2]
[384259400,1757310646444,-480.0,0.00013698,2]
[384259402,1757310646453,-2349.28,0.00013698,2]
[384259403,1757310646463,-483.55249049,0.00013698,2]
[384259405,1757310646472,-152.756444,0.00013698,2]
[384259407,1757310646482,-393.21717551,0.00013698,2]
[384259409,1757310646491,-480.0,0.00013698,2]
[384259411,1757310646500,-485.41231531,0.00013698,2]
[384259413,1757310646510,-480.0,0.00013698,2]
[384259415,1757310646519,-528.06,0.00013698,2]
[384259417,1757310646529,-480.0,0.00013698,2]
[384259419,1757310646538,-159.10555731,0.00013698,2]
[384259421,1757310646547,-446.62741328,0.00013698,2]
[384259423,1757310646559,-480.0,0.00013698,2]
[384259425,1757310646571,-695.3,0.00013698,2]
[384259427,1757310646581,-480.0,0.00013698,2]
[384259429,1757310646590,-480.0,0.00013698,2]
[384259431,1757310646599,-480.0,0.00013698,2]
[384259433,1757310646611,-245.88660548,0.00013698,2]
[384259435,1757310646620,-480.0,0.00013698,2]
[384259437,1757310646628,-487.48641326,0.00013698,2]
[384259439,1757310646639,-481.74178872,0.00013698,2]
[384259441,1757310646648,-481.61667544,0.00013698,2]
[384259443,1757310646657,-481.82708454,0.00013698,2]
[384259445,1757310646666,-480.0,0.00013698,2]
[384259447,1757310646676,-481.36721649,0.00013698,2]
[384259449,1757310646685,-480.0,0.00013698,2]
[384259451,1757310646694,-1526.58,0.00013698,2]
[384259453,1757310646704,-480.0,0.00013698,2]
[384259455,1757310646717,-480.0,0.00013698,2]
[384259457,1757310646727,-427.28136595,0.00013698,2]
[384259459,1757310646737,-480.0,0.00013698,2]
[384259461,1757310646747,-157.0,0.00013698,2]
[384259463,1757310646756,-480.0,0.00013698,2]
[384259465,1757310646765,-480.0,0.00013698,2]
[384259467,1757310646774,-500.0,0.00013698,2]
[384259469,1757310646783,-500.0,0.00013698,2]
[384259471,1757310646793,-480.0,0.00013698,2]
[384259473,1757310646802,-157.0,0.00013698,2]
[384259475,1757310646811,-297.17031766,0.00013698,2]
[384259477,1757310646821,-480.0,0.00013698,2]
[384259479,1757310646830,-500.0,0.00013698,2]
[384259481,1757310646840,-548.2,0.00013698,2]
[384259482,1757310646849,-245.4658174,0.00013698,2]
[384259484,1757310646858,-500.0,0.00013698,2]
[384259486,1757310646868,-480.0,0.00013698,2]
[384259488,1757310646877,-480.0,0.00013698,2]
[384259490,1757310646887,-480.0,0.00013698,2]
[384259492,1757310646896,-485.84323012,0.00013698,2]
[384259494,1757310646905,-483.31060766,0.00013698,2]
[384259496,1757310646915,-480.0,0.00013698,2]
[384259498,1757310646924,-1305.87,0.00013698,2]
[384259500,1757310646934,-480.0,0.00013698,2]
[384259502,1757310646943,-484.8836237,0.00013698,2]
[384259504,1757310646953,-480.0,0.00013698,2]
[384259506,1757310646963,-1186.39,0.00013698,2]
[384259508,1757310646974,-400.83500559,0.00013698,2]
[384259510,1757310646984,-600.32,0.00013698,2]
[384259512,1757310646993,-480.0,0.00013698,2]
[384259514,1757310647003,-438.54600719,0.00013698,2]
[384259516,1757310647013,-481.11146084,0.00013698,2]
[384259518,1757310647022,-480.0,0.00013698,2]
[384259520,1757310647031,-480.0,0.00013698,2]
[384259522,1757310647041,-480.0,0.00013698,2]
[384259524,1757310647050,-480.0,0.00013698,2]
[384259526,1757310647060,-480.0,0.00013698,2]
[384259528,1757310647070,-480.0,0.00013698,2]
[384259530,1757310647079,-575.99,0.00013698,2]
[384259532,1757310647088,-151.0,0.00013698,2]
[384259534,1757310647097,-285.160303,0.00013698,2]
[384259536,1757310647107,-480.0,0.00013698,2]
[384259538,1757310647115,-480.0,0.00013698,2]
[384259540,1757310647124,-481.97245701,0.00013698,2]
[384259542,1757310647132,-480.0,0.00013698,2]
[384259544,1757310647141,-783.49,0.00013698,2]
[384259546,1757310647150,-480.0,0.00013698,2]
[384259548,1757310647159,-482.14953305,0.00013698,2]
[384259550,1757310647170,-480.0,0.00013698,2]
[384259552,1757310647180,-151.0,0.00013698,2]
[384259554,1757310647190,-155.97932,0.00013698,2]
[384259556,1757310647201,-480.0,0.00013698,2]
[384259558,1757310647210,-690.89,0.00013698,2]
[384259560,1757310647220,-480.0,0.00013698,2]
[384259562,1757310647229,-480.0,0.00013698,2]
[384259564,1757310647240,-480.0,0.00013698,2]
[384259566,1757310647249,-480.0,0.00013698,2]
[384259568,1757310647259,-480.0,0.00013698,2]
[384259570,1757310647268,-480.0,0.00013698,2]
[384259571,1757310647277,-480.0,0.00013698,2]
[384259573,1757310647286,-480.0,0.00013698,2]
[384259575,1757310647296,-480.0,0.00013698,2]
[384259577,1757310647305,-480.0,0.00013698,2]
[384259579,1757310647315,-480.0,0.00013698,2]
[384259581,1757310647324,-497.79242964,0.00013698,2]
[384259583,1757310647333,-480.0,0.00013698,2]
[384259585,1757310647343,-1165.840502,0.00013698,2]
[384259587,1757310647352,-1165.840502,0.00013698,2]
[384259589,1757310647361,-1165.840502,0.00013698,2]
[384259591,1757310647371,-1165.840502,0.00013698,2]
[384259593,1757310647380,-1165.840502,0.00013698,2]
[384259595,1757310647389,-1165.840502,0.00013698,2]
[384259597,1757310647398,-480.0,0.00013698,2]
[384259599,1757310647407,-1165.840502,0.00013698,2]
[384259601,1757310647417,-1165.840502,0.00013698,2]
[384259603,1757310647426,-480.0,0.00013698,2]
[384259605,1757310647435,-1165.840502,0.00013698,2]
[384259607,1757310647444,-480.0,0.00013698,2]
[384259609,1757310647452,-1165.840502,0.00013698,2]
[384259611,1757310647462,-480.0,0.00013698,2]
[384259613,1757310647471,-320.48706088,0.00013698,2]
[384259633,1757310647658,-159.51293912,0.00013698,2]
[384259635,1757310647667,-1165.840502,0.00013698,2]
[384259636,1757310647676,-1165.840502,0.00013698,2]
[384259638,1757310647686,-1165.840502,0.00013698,2]
[384259640,1757310647695,-480.0,0.00013698,2]
[384259642,1757310647704,-6700.81741412,0.00013698,2]
[384259698,1757310648241,-4601.50878694,0.00013698,2]
[384259701,1757310648258,-1351.50379894,0.00013698,2]
[384259703,1757310648268,-1165.840502,0.00013698,2]
[384259705,1757310648278,-1165.840502,0.00013698,2]
[384259707,1757310648287,-1438.99,0.00013698,2]
[384259708,1757310648296,-1165.840502,0.00013698,2]
[384259710,1757310648305,-480.0,0.00013698,2]
[384259712,1757310648314,-1165.840502,0.00013698,2]
[384259714,1757310648323,-480.0,0.00013698,2]
[384259716,1757310648332,-480.0,0.00013698,2]
[384259718,1757310648342,-1165.840502,0.00013698,2]
[384259720,1757310648351,-1165.840502,0.00013698,2]
[384259722,1757310648360,-1165.840504,0.00013698,2]
[384259724,1757310648370,-480.0,0.00013698,2]
[384259726,1757310648379,-480.0,0.00013698,2]
[384259728,1757310648388,-480.0,0.00013698,2]
[384259730,1757310648398,-480.0,0.00013698,2]
[384259732,1757310648407,-480.0,0.00013698,2]
[384259734,1757310648417,-474.8156795,0.00013698,2]
[384259736,1757310648427,-481.59040676,0.00013698,2]
[384259738,1757310648437,-480.0,0.00013698,2]
[384259740,1757310648446,-482.05744627,0.00013698,2]
[384259742,1757310648455,-174.233875,0.00013698,2]
[384259744,1757310648464,-480.0,0.00013698,2]
[384259746,1757310648473,-174.233875,0.00013698,2]
[384259748,1757310648482,-174.233875,0.00013698,2]
[384259749,1757310648492,-174.233875,0.00013698,2]
[384259751,1757310648501,-174.233875,0.00013698,2]
[384259753,1757310648510,-174.233875,0.00013698,2]
[384259755,1757310648520,-174.233875,0.00013698,2]
[384259757,1757310648529,-480.0,0.00013698,2]